Cogmind - Beta 12 @@@ ROGUE MODE // 2023.05.10 @ 21:37:32 Player: Mr Goldstein Result: Destroyed by as-23447 with Assembled Focal Cannon Performance ------------- Evolutions (3) 1500 Regions Visited (11) 2200 Robots Destroyed (11) 55 Value Destroyed (137) 137 Prototype IDs (24) 480 Alien Tech Used (0) 0 Bonus (345) 345 TOTAL SCORE: 4717 Bonus ------- Aligned with FarCom 300 Met Imprinter 300 Friendly Fire -255 Cogmind --------- Core Integrity 0/700 Matter 230/300 Energy 99/100 System Corruption 1% Temperature Cool (6) Movement Core (50) Location -6/Deep Caves Parts ------- > --- POWER (2) -------- (None) > --- PROPULSION (5) --- (None) > --- UTILITY (4) ------ (None) > --- WEAPON (2) ------- (None) > --- INVENTORY (5) ---- RU-N14's Throwing Claymores (10) RU-N14's Throwing Claymores (10) RU-N14's Throwing Claymores (10) Powered Hammer GAL Module Peak State ------------ > --- POWER ------------ (None) > --- PROPULSION ------- Light Treads Light Treads > --- UTILITY ---------- Backup Plating III Backup Plating III > --- WEAPON ----------- Backup Laser III Backup Laser III > --- INVENTORY -------- Grenade Launcher [Rating: 14] Favorites ----------- Power None Propulsion Light Treads Treads Light Treads Leg Improved Aluminum Leg Hover Unit Improved Hover Unit Flight Unit Flight Unit Utility Improved Signal Interpreter Processor Improved Signal Interpreter Protection Backup Plating III Weapon Powered Hammer Energy Gun Backup Laser III Launcher Grenade Launcher Special Weapon RU-N14's Throwing Claymores Impact Weapon Powered Hammer Slashing Weapon Katana Build | -11 -10 -10 -9 -9 -9 -8 -8 -7 -7 -6 -6 ------- Run | Jun Mat Min Mat Min Exi Min Mat Fac Low Zio Dee Slots Evolved 6 | . . . 2 . . . 2 2 . . . Power 1 | . . . . . . . . 1 . . . Propulsion 3 | . . . 2 . . . 1 . . . . Utility 2 | . . . . . . . 1 1 . . . Weapon . | . . . . . . . . . . . . Parts Attached 30 | 2 . 2 4 . 1 1 10 . 2 1 7 Power . | . . . . . . . . . . . . Engine . | . . . . . . . . . . . . Core . | . . . . . . . . . . . . Reactor . | . . . . . . . . . . . . Propulsion 15 | 2 . . 4 . 1 . 7 . 1 . . Treads 4 | 2 . . 1 . . . . . 1 . . Leg 4 | . . . 2 . 1 . 1 . . . . Wheel . | . . . . . . . . . . . . Hover 1 | . . . 1 . . . . . . . . Flight 6 | . . . . . . . 6 . . . . Utility 2 | . . . . . . . 2 . . . . Device . | . . . . . . . . . . . . Storage . | . . . . . . . . . . . . Processor 1 | . . . . . . . 1 . . . . Hackware . | . . . . . . . . . . . . Protection 1 | . . . . . . . 1 . . . . Artifact . | . . . . . . . . . . . . Weapon 13 | . . 2 . . . 1 1 . 1 1 7 Energy Gun . | . . . . . . . . . . . . Energy Cannon . | . . . . . . . . . . . . Ballistic Gun . | . . . . . . . . . . . . Ballistic Cannon . | . . . . . . . . . . . . Launcher 4 | . . 2 . . . 1 1 . . . . Special Weapon 1 | . . . . . . . . . . . 1 Impact Weapon 7 | . . . . . . . . . . 1 6 Slashing Weapon 1 | . . . . . . . . . 1 . . Piercing Weapon . | . . . . . . . . . . . . Special Melee Weapon . | . . . . . . . . . . . . Unidentified Prototypes 1 | . . . . . . . . . . . 1 Parts Lost 14 | . . . . . . 3 9 . . 1 1 Power . | . . . . . . . . . . . . Propulsion 10 | . . . . . . 2 7 . . 1 . Utility 3 | . . . . . . 1 1 . . . 1 Weapon 1 | . . . . . . . 1 . . . . Highest Loss Streak 6 | . . . . . . 3 6 . . 1 1 To Critical Strikes . | . . . . . . . . . . . . Average Slot Usage (%) 20 | . 30 44 48 55 55 49 22 7 17 16 3 Treads 7 | . 28 28 22 22 22 17 . . 5 6 . Leg 2 | . . . 6 11 11 11 4 . . . . Hover 2 | . . . 8 11 11 11 1 . . . . Processor 3 | . . . . . . . . 7 7 7 2 Protection 3 | . 2 14 11 11 11 9 7 . . . . Naked Turns 590 | . . . . . . . 20 . . . 570 Heaviest Build 5 | . 2 5 2 2 2 2 2 . 2 3 3 Greatest Support 20 | 20 3 3 3 3 3 3 8 3 3 3 3 Greatest Overweight (x) 1 | . . 1 . . . . . . . . . Average Overweight (x) . | . . . . . . . . . . . . Largest Inventory Capacity 5 | 5 5 5 5 5 5 5 5 5 5 5 5 Average Capacity 5 | 5 5 5 5 5 5 5 5 5 5 5 5 Most Carried 5 | . 3 3 5 5 5 5 5 5 5 5 5 Average Carried 4 | . 1 2 4 5 4 4 4 4 4 4 4 Final Capacity 5 | 5 5 5 5 5 5 5 5 5 5 5 5 Final Carried 5 | . 3 3 5 5 5 5 5 5 5 4 5 Class Distribution -------------------- 100% | Mutant Dominant Class ---------------- Mutant | -10/Materials Mutant | -10/Mines Mutant | -9/Materials Mutant | -9/Mines Mutant | -9/Exiles Mutant | -8/Mines Mutant | -8/Materials Mutant | -7/Factory Mutant | -7/Lower Caves Mutant | -6/Zion Mutant | -6/Deep Caves Resources | -11 -10 -10 -9 -9 -9 -8 -8 -7 -7 -6 -6 ----------- Run | Jun Mat Min Mat Min Exi Min Mat Fac Low Zio Dee Matter Collected 413 | 220 . 50 . . . 7 . . 136 . . Remotely . | . . . . . . . . . . . . Salvage Created 268 | . . 28 . . . 22 68 . 124 26 . Parts 18 | . . 3 . . . 1 9 . 5 . . Haulers Intercepted 1 | . . . . . . . 1 . . . . Recyclers Shooed . | . . . . . . . . . . . . Parts Field Recycled . | . . . . . . . . . . . . Retrieved Matter . | . . . . . . . . . . . . Parts Self-Destructed . | . . . . . . . . . . . . Prevented . | . . . . . . . . . . . . Kills | -11 -10 -10 -9 -9 -9 -8 -8 -7 -7 -6 -6 ------- Run | Jun Mat Min Mat Min Exi Min Mat Fac Low Zio Dee Combat Hostiles Destroyed 13 | . . 6 . . . 3 3 . . 1 . Melee 1 | . . . . . . . . . . 1 . AOE 12 | . . 6 . . . 3 3 . . . . Classes Destroyed 5 | . . 3 . . . . 1 . 1 . . Hauler 1 | . . . . . . . 1 . . . . Swarmer 8 | . . 2 . . . 3 3 . . . . Grunt 1 | . . 1 . . . . . . . . . Samaritan 3 | . . . . . . . . . 3 . . Assembled 3 | . . 3 . . . . . . . . . Best Kill Streak 6 | . . 6 . . . 3 4 . . 1 . Combat Bots Only 6 | . . 6 . . . 3 3 . . 1 . Max Kills in Single Turn 4 | . . 2 . . . 2 4 . 1 1 . Gunslinging . | . . . . . . . . . . . . Exploded 3 | . . 2 . . . 2 3 . . . . Melee 1 | . . . . . . . . . . 1 . Uniques/NPCs Destroyed 1 | . . . . . . . . . . 1 . Imprinter (-6/Zion) Combat | -11 -10 -10 -9 -9 -9 -8 -8 -7 -7 -6 -6 -------- Run | Jun Mat Min Mat Min Exi Min Mat Fac Low Zio Dee Damage Taken 2371 | . 151 125 93 16 . 253 788 74 . 520 351 Core 1343 | . 64 16 11 8 . 59 482 74 . 298 331 Absorbed by Shields . | . . . . . . . . . . . . Regen/Repaired (Parts) 62 | . . . . . . . . . . 62 . Core Remaining (%) 65 | 100 . 68 . . . 80 12 . . . . Volleys Fired 9 | . . 4 . . . 4 1 . . . . Largest 1 | . . 1 . . . 1 1 . . . . Hottest 30 | . . 30 . . . 30 30 . . . . Shots Fired 9 | . . 4 . . . 4 1 . . . . Gun . | . . . . . . . . . . . . Cannon . | . . . . . . . . . . . . Launcher 9 | . . 4 . . . 4 1 . . . . Special . | . . . . . . . . . . . . Kinetic . | . . . . . . . . . . . . Thermal . | . . . . . . . . . . . . Explosive 9 | . . 4 . . . 4 1 . . . . Electromagnetic . | . . . . . . . . . . . . Robot Hit Streak 1 | . . . . . . 1 . . . . . Robot Miss Streak . | . . . . . . . . . . . . Penetration Max . | . . . . . . . . . . . . Secondary Targets . | . . . . . . . . . . . . Shots Hit Robots 8 | . . . . . . 1 . . 3 4 . Core Hits 28 | . 1 8 . 1 . 5 8 . 3 2 . Critical Kills . | . . . . . . . . . . . . Critical Parts Destroyed 1 | . . . . . . . . . . 1 . Critical Strikes 1 | . . . . . . . . . . 1 . Smash 1 | . . . . . . . . . . 1 . Melee Attacks 52 | . . . . . . . . . 3 27 22 Impact 49 | . . . . . . . . . . 27 22 Slashing 3 | . . . . . . . . . 3 . . Piercing . | . . . . . . . . . . . . Sneak Attacks 4 | . . . . . . . . . 3 1 . Combat Hostiles . | . . . . . . . . . . . . Follow-up Attacks . | . . . . . . . . . . . . Damage Inflicted 1102 | . 40 280 . 18 . 212 140 . 204 208 . Guns . | . . . . . . . . . . . . Cannons . | . . . . . . . . . . . . Explosions 611 | . . 279 . . . 196 136 . . . . Melee 412 | . . . . . . . . . 204 208 . Ramming 79 | . 40 1 . 18 . 16 4 . . . . Kinetic . | . . . . . . . . . . . . Thermal . | . . . . . . . . . . . . Explosive 611 | . . 279 . . . 196 136 . . . . Electromagnetic . | . . . . . . . . . . . . Impact 208 | . . . . . . . . . . 208 . Slashing 204 | . . . . . . . . . 204 . . Piercing . | . . . . . . . . . . . . Highest Corruption 2 | . . . . . . . . 2 2 2 1 Average Corruption 1 | . . . . . . . . 1 2 1 1 Corruption Purged . | . . . . . . . . . . . . Corruption Blocked . | . . . . . . . . . . . . Effects 5 | . . . . . . . . . 2 . 3 Message Errors 2 | . . . . . . . . . 2 . . Energy Discharges 2 | . . . . . . . . . . . 2 Data Loss (minor) 1 | . . . . . . . . . . . 1 Overload Shots . | . . . . . . . . . . . . Overflow Damage 152 | . . . . . . 30 . . . 122 . Projectiles . | . . . . . . . . . . . . Explosions 30 | . . . . . . 30 . . . . . Melee 122 | . . . . . . . . . . 122 . Knockbacks 4 | . . . . 1 . . . . . 3 . Impact 4 | . . . . 1 . . . . . 3 . Kinetic . | . . . . . . . . . . . . Secondary . | . . . . . . . . . . . . Self-Inflicted Damage 64 | . 19 . . 8 . 7 30 . . . . Shots 1 | . . . . . . . 1 . . . . Rammed 20 | . 8 1 . 4 . 6 1 . . . . Targets Rammed 20 | . 8 1 . 4 . 6 1 . . . . Kicked . | . . . . . . . . . . . . Crushed . | . . . . . . . . . . . . Highest Temperature 12 | . . . . . . 3 12 . . . . Average Temperature 6 | . . . . . . 3 8 . . . . Received Heat Transfer 695 | . 72 36 51 . . 81 369 24 . 20 42 Siege Activations . | . . . . . . . . . . . . Robots Corrupted . | . . . . . . . . . . . . Combat Hostiles . | . . . . . . . . . . . . Parts Fried . | . . . . . . . . . . . . Impact Corruptions 8 | . . . . . . . . . . 8 . Robots Melted . | . . . . . . . . . . . . Combat Hostiles . | . . . . . . . . . . . . Parts Melted . | . . . . . . . . . . . . Heat Transferred . | . . . . . . . . . . . . Parts Sabotaged . | . . . . . . . . . . . . Parts Stolen . | . . . . . . . . . . . . Parts Stripped . | . . . . . . . . . . . . Power Chain Reactions . | . . . . . . . . . . . . Missiles Intercepted . | . . . . . . . . . . . . Alert | -11 -10 -10 -9 -9 -9 -8 -8 -7 -7 -6 -6 ------- Run | Jun Mat Min Mat Min Exi Min Mat Fac Low Zio Dee Peak Influence 288 | . 61 185 87 33 . 86 282 288 . . . Initial 121 | . . 23 72 33 . . 21 121 . . . Average 90 | . 33 96 73 33 . 61 136 189 . . . Maximum Alert Level 1 | . . . . . . . 1 1 . . . Low Security (%) 87 | 100 100 100 100 100 . 100 65 58 . . . Level 1 12 | . . . . . . . 34 41 . . . Level 2 . | . . . . . . . . . . . . Level 3 . | . . . . . . . . . . . . Level 4 . | . . . . . . . . . . . . Level 5 . | . . . . . . . . . . . . High Security . | . . . . . . . . . . . . Max Security . | . . . . . . . . . . . . Squads Dispatched 6 | . 1 . . . . . 2 3 . . . Investigation 5 | . 1 . . . . . 2 2 . . . Extermination . | . . . . . . . . . . . . Reinforcement 1 | . . . . . . . . 1 . . . Assault . | . . . . . . . . . . . . Garrison . | . . . . . . . . . . . . Intercept . | . . . . . . . . . . . . Searches Triggered . | . . . . . . . . . . . . Construction Impeded . | . . . . . . . . . . . . Haulers Reinforced . | . . . . . . . . . . . . Active Scanning Responses . | . . . . . . . . . . . . Cargo Convoy Interrupts . | . . . . . . . . . . . . Stealth | -11 -10 -10 -9 -9 -9 -8 -8 -7 -7 -6 -6 --------- Run | Jun Mat Min Mat Min Exi Min Mat Fac Low Zio Dee Distress Signals 6 | . . 1 2 . . . 3 . . . . Communications Jammed . | . . . . . . . . . . . . Distress Signals . | . . . . . . . . . . . . Times Spotted 97 | . 2 19 7 . . 13 35 3 . 15 3 Peak Tracking Total 21 | . 2 12 8 . . 10 21 7 . 12 1 Tactical Retreats 13 | . . 2 . . . . 3 3 . 3 2 Traps | -11 -10 -10 -9 -9 -9 -8 -8 -7 -7 -6 -6 ------- Run | Jun Mat Min Mat Min Exi Min Mat Fac Low Zio Dee Traps Triggered 2 | . . . 2 . . . . . . . . Indirectly . | . . . . . . . . . . . . Trap Hack Attempts . | . . . . . . . . . . . . Triggered . | . . . . . . . . . . . . Disarmed . | . . . . . . . . . . . . Reprogrammed . | . . . . . . . . . . . . Reused . | . . . . . . . . . . . . Traps Extracted . | . . . . . . . . . . . . Installed . | . . . . . . . . . . . . Triggered . | . . . . . . . . . . . . Machines | -11 -10 -10 -9 -9 -9 -8 -8 -7 -7 -6 -6 ---------- Run | Jun Mat Min Mat Min Exi Min Mat Fac Low Zio Dee Machines Disabled 3 | . . . . . . . 2 . . . 1 Max in Single Turn 2 | . . . . . . . 2 . . . 1 Machines Repaired . | . . . . . . . . . . . . Machines Sabotaged . | . . . . . . . . . . . . Overloaded Fab Kills 1 | . . . . . . . . 1 . . . Hacking | -11 -10 -10 -9 -9 -9 -8 -8 -7 -7 -6 -6 --------- Run | Jun Mat Min Mat Min Exi Min Mat Fac Low Zio Dee Machines Accessed 13 | . 2 1 . . 1 . 2 4 2 1 . Terminals 6 | . . 1 . . . . 2 3 . . . Fabricators 1 | . . . . . . . . 1 . . . Repair Stations 1 | . 1 . . . . . . . . . . Recycling Units 1 | . 1 . . . . . . . . . . Scanalyzers . | . . . . . . . . . . . . Garrison Access . | . . . . . . . . . . . . Total Hacks 32 | . 4 3 . . 1 . 7 5 9 3 . Successful 18 | . 2 1 . . 1 . . 2 9 3 . Failed 14 | . 2 2 . . . . 7 3 . . . Catastrophic 3 | . . . . . . . 1 2 . . . Database Lockouts . | . . . . . . . . . . . . Manual 10 | . 1 3 . . 1 . 3 2 . . . Terminals 14 | . . 3 . . . . 7 4 . . . Fabricators 1 | . . . . . . . . 1 . . . Repair Stations 2 | . 2 . . . . . . . . . . Recycling Units 2 | . 2 . . . . . . . . . . Scanalyzers . | . . . . . . . . . . . . Garrison Access . | . . . . . . . . . . . . Terminal Hacks 15 | . . 1 . . 1 . . 1 9 3 . Record 8 | . . . . . . . . . 8 . . Part Schematic 3 | . . . . . . . . . . 3 . Open Door 1 | . . . . . . . . . 1 . . Level Access Points 1 | . . . . . . . . 1 . . . Zone Layout 1 | . . 1 . . . . . . . . . EX-Prototype ID Bank 1 | . . . . . 1 . . . . . . Fabricator Hacks . | . . . . . . . . . . . . Repair Station Hacks 1 | . 1 . . . . . . . . . . Refit 1 | . 1 . . . . . . . . . . Recycling Unit Hacks . | . . . . . . . . . . . . Scanalyzer . | . . . . . . . . . . . . Garrison Access Hacks . | . . . . . . . . . . . . Unauthorized Hacks 2 | . 1 . . . . . . 1 . . . Terminals . | . . . . . . . . . . . . Fabricators 1 | . . . . . . . . 1 . . . Overload 1 | . . . . . . . . 1 . . . Repair Stations . | . . . . . . . . . . . . Recycling Units 1 | . 1 . . . . . . . . . . Tunnel 1 | . 1 . . . . . . . . . . Scanalyzers . | . . . . . . . . . . . . Garrison Access . | . . . . . . . . . . . . Data Cores Recovered . | . . . . . . . . . . . . Used . | . . . . . . . . . . . . Hacking Detections 6 | . 1 1 . . . . 2 2 . . . Full Trace Events 3 | . . . . . . . 2 1 . . . Feedback Events 1 | . . . . . . . . 1 . . . Corruption 1 | . . . . . . . . 1 . . . Feedback Blocked . | . . . . . . . . . . . . Robot Schematics Acquired . | . . . . . . . . . . . . Robots Built . | . . . . . . . . . . . . Authchips . | . . . . . . . . . . . . Time . | . . . . . . . . . . . . Total Robot Build Rating . | . . . . . . . . . . . . Part Schematics Acquired 3 | . . . . . . . . . . 3 . Parts Built . | . . . . . . . . . . . . Authchips . | . . . . . . . . . . . . Time . | . . . . . . . . . . . . Total Part Build Rating . | . . . . . . . . . . . . Parts Repaired . | . . . . . . . . . . . . Time . | . . . . . . . . . . . . Parts Recycled . | . . . . . . . . . . . . Recycled Matter . | . . . . . . . . . . . . Retrieved Matter . | . . . . . . . . . . . . Retrieved Components . | . . . . . . . . . . . . Parts Scanalyzed . | . . . . . . . . . . . . Part Schematics Acquired . | . . . . . . . . . . . . Parts Damaged . | . . . . . . . . . . . . Bothacking | -11 -10 -10 -9 -9 -9 -8 -8 -7 -7 -6 -6 ------------ Run | Jun Mat Min Mat Min Exi Min Mat Fac Low Zio Dee Used RIF Installer . | . . . . . . . . . . . . Robots Hacked . | . . . . . . . . . . . . Non-combat . | . . . . . . . . . . . . Combat . | . . . . . . . . . . . . Robot Hacks Applied . | . . . . . . . . . . . . Relay Couplers Released . | . . . . . . . . . . . . Fabnet Peak Effective % . | . . . . . . . . . . . . Robots Rewired . | . . . . . . . . . . . . Allies Hacked . | . . . . . . . . . . . . Hacks Repelled . | . . . . . . . . . . . . Allies | -11 -10 -10 -9 -9 -9 -8 -8 -7 -7 -6 -6 -------- Run | Jun Mat Min Mat Min Exi Min Mat Fac Low Zio Dee Total Allies 5 | . . . . 2 . . . . 3 . . Largest Group 3 | . . . . 2 2 . . . 3 . . Highest-Rated Group 60 | . . . . 47 47 . . . 60 . . Highest-Rated Ally 31 | . . . . 31 31 . . . 20 . . Total Orders . | . . . . . . . . . . . . Ally Attacks . | . . . . . . . . . . . . Total Damage . | . . . . . . . . . . . . Kills . | . . . . . . . . . . . . Allies Corrupted . | . . . . . . . . . . . . Allies Melted . | . . . . . . . . . . . . Intel | -11 -10 -10 -9 -9 -9 -8 -8 -7 -7 -6 -6 ------- Run | Jun Mat Min Mat Min Exi Min Mat Fac Low Zio Dee Robot Analysis Total . | . . . . . . . . . . . . Derelict Logs Recovered 3 | . . 1 . 1 . . . . . 1 . Drone Launches . | . . . . . . . . . . . . Drone Recoveries . | . . . . . . . . . . . . Exploration | -11 -10 -10 -9 -9 -9 -8 -8 -7 -7 -6 -6 ------------- Run | Jun Mat Min Mat Min Exi Min Mat Fac Low Zio Dee Turns Passed 2578 | 19 54 128 53 123 186 123 153 90 123 622 904 Spaces Moved 3788 | 28 83 224 90 171 270 209 315 175 221 956 1046 Core 3572 | 26 83 224 90 171 270 209 101 175 221 956 1046 Treads 2 | 2 . . . . . . . . . . . Legs . | . . . . . . . . . . . . Wheels . | . . . . . . . . . . . . Hover . | . . . . . . . . . . . . Flight 214 | . . . . . . . 214 . . . . Fastest Speed 37 | 50 50 50 50 50 50 50 37 50 50 50 50 Average Speed 49 | 57 50 51 50 50 50 50 41 50 50 50 50 Slowest Speed 160 | 160 50 100 50 50 50 50 60 50 50 50 50 Overloaded Moves . | . . . . . . . . . . . . Propulsion Burnouts . | . . . . . . . . . . . . Robots Hopped 9 | . . . . . . . 9 . . . . Cave-ins Triggered . | . . . . . . . . . . . . Exploration Rate (%) 39 | 3 24 59 19 53 43 41 36 6 38 85 69 Regions Visited 11 Branch Regions 7 Pre-discovered Areas 4 | . 1 . . . . . . . . 3 . Known Exits Taken 5 | . . 1 . . . . 1 1 1 1 . Unknown Exits Taken 6 | 1 1 . 1 1 1 1 . . . . . Scrap Searched 5 | . . 2 . . . . . . 2 1 . Spaces Dug 37 | . . 22 . . . 6 . . . 4 5 Terrain Destroyed 66 | . . 37 . . . 16 4 . . 4 5 Melee 9 | . . . . . . . . . . 4 5 Projectile . | . . . . . . . . . . . . AOE 57 | . . 37 . . . 16 4 . . . . Terrain Rammed . | . . . . . . . . . . . . Walls Destroyed . | . . . . . . . . . . . . Machines Disabled . | . . . . . . . . . . . . Actions | -11 -10 -10 -9 -9 -9 -8 -8 -7 -7 -6 -6 --------- Run | Jun Mat Min Mat Min Exi Min Mat Fac Low Zio Dee Total 4379 | 29 96 232 95 207 320 223 325 178 228 1054 1392 Wait 456 | . . . . 33 48 3 . . . 63 309 Move 3760 | 27 82 223 89 170 269 208 297 174 220 955 1046 Hop 8 | . . . . . . . 8 . . . . Pick Up 17 | . 2 . 2 . 1 . 5 2 1 4 . Fast Attach 13 | 2 . . 4 . . . 6 . 1 . . Attach 16 | . . 2 . . . 1 4 . 1 1 7 Detach 13 | . 1 2 . . . 1 . . 1 . 8 Swap 1 | . . . . . 1 . . . . . . Drop 14 | . 3 . . . 1 . 3 2 1 4 . Fire 9 | . . 4 . . . 4 1 . . . . Melee 52 | . . . . . . . . . 3 27 22 Ram 20 | . 8 1 . 4 . 6 1 . . . . Kick . | . . . . . . . . . . . . Crush . | . . . . . . . . . . . . Escape Stasis . | . . . . . . . . . . . . Rewire . | . . . . . . . . . . . . Trap . | . . . . . . . . . . . . Miscellaneous . | . . . . . . . . . . . . Route ------- -11/Junkyard -10/Materials -10/Mines (discovered 2 exits: *Mat x2) -9/Materials -9/Mines (discovered 2 exits: *Mat / *Exi) -9/Exiles -8/Mines -8/Materials -7/Factory (discovered 5 exits: Fac x4 / *Low) -7/Lower Caves -6/Zion (discovered 2 exits: *Dee / [*Pro]) -6/Deep Caves (discovered 1 exit: [*Pro]) History --------- Turn | Location | Event 3 | -11/Junkyard | Discovered new exit (range 15) 20 | -11/Junkyard | Entered Materials 41 | -10/Materials | Discovered new exit (range 9) 74 | -10/Materials | Entered Mines 106 | -10/Mines | Assembled infested the area 197 | -10/Mines | Identified exit to Materials 199 | -10/Mines | Discovered exit to Materials (range 6) 202 | -10/Mines | Entered Materials 202 | -9/Materials | Evolved 2 slots: Propulsion x2 252 | -9/Materials | Discovered new exit (range 7) 255 | -9/Materials | Entered Mines 297 | -9/Mines | Learned Materials trap positions 299 | -9/Mines | Discovered new exit (range 13) 301 | -9/Mines | Build established: Mutant 342 | -9/Mines | Deemed a non-threat by the Exiles lab entrance 342 | -9/Mines | Discovered new exit (range 5) 378 | -9/Mines | Entered Exiles 378 | -9/Exiles | Accompanied by 2 allies 408 | -9/Exiles | Led the pair of lost Derelicts to a safe place 417 | -9/Exiles | Met 8R-AWN 425 | -9/Exiles | Met EX-HEX 440 | -9/Exiles | Met EX-BIN 446 | -9/Exiles | Aligned with FarCom system 446 | -9/Exiles | Given EX-Vault access code 458 | -9/Exiles | Opened EX-Vault 465 | -9/Exiles | Found Trap Reconfigurator 476 | -9/Exiles | Warned to stay clear of 0b10 Research branches 559 | -9/Exiles | Discovered new exit (range 14) 564 | -9/Exiles | Left Exiles lab with Trap Reconfigurator 564 | -9/Exiles | Entered Mines 683 | -8/Mines | Discovered new exit (range 5) 687 | -8/Mines | Entered Materials 687 | -8/Materials | Evolved 2 slots: Propulsion x1, Utility x1 688 | -8/Materials | Loaded intel: 14 trap records 699 | -8/Materials | Lost 3 parts (2n1u) 763 | -8/Materials | Lost 6 parts (5n1w) 814 | -8/Materials | Core integrity fell below 50% 827 | -8/Materials | Discovered new exit (range 15) 837 | -8/Materials | Core integrity fell below 20% 840 | -8/Materials | Identified exit to Factory 840 | -8/Materials | Entered Factory 840 | -7/Factory | Evolved 2 slots: Power x1, Utility x1 843 | -7/Factory | Lost 3 parts (2n1u) 880 | -7/Factory | Identified exit to Factory 916 | -7/Factory | Discovered new exit (range 6) 918 | -7/Factory | Identified exit to Lower Caves 930 | -7/Factory | Entered Lower Caves 969 | -7/Lower Caves | Encountered a Warlord checkpoint 1006 | -7/Lower Caves | A Commander dispatched an escort 1007 | -7/Lower Caves | Learned Factory trap positions 1007 | -7/Lower Caves | Learned Extension emergency access door positions 1007 | -7/Lower Caves | Learned Armory security intel 1050 | -7/Lower Caves | A Derelict revealed a hidden shortcut to a safe place 1052 | -7/Lower Caves | Identified exit to Zion 1053 | -7/Lower Caves | Entered Zion 1067 | -6/Zion | Learned Factory terminal intel 1102 | -6/Zion | System corruption cleaned by Quarantine Array 1118 | -6/Zion | Found Prototype Special Weapon 1119 | -6/Zion | Found Prototype Special Weapon 1121 | -6/Zion | Found Prototype Special Weapon 1152 | -6/Zion | Discovered new exit (range 16) 1262 | -6/Zion | Learned location of Warlord (-4) 1323 | -6/Zion | Learned location of Quarantine (-3) 1323 | -6/Zion | Given the Hacking Drone Bay 1390 | -6/Zion | Found GAL Module 1565 | -6/Zion | Discovered new exit (range 4) 1567 | -6/Zion | Saw the warning signs outside the Deep Caves entrance 1568 | -6/Zion | Identified exit to Deep Caves 1604 | -6/Zion | Rebuked by Imprinter 1607 | -6/Zion | Attacked by Zionites 1633 | -6/Zion | Destroyed Imprinter 1636 | -6/Zion | Extracted access codes from Imprinter's data core 1649 | -6/Zion | Core integrity fell below 50% 1675 | -6/Zion | Entered Deep Caves 1727 | -6/Deep Caves | Z-Facility disabled 1753 | -6/Deep Caves | Identified RU-N14's Throwing Claymores (x3) 1929 | -6/Deep Caves | Discovered new exit (range 7) 1982 | -6/Deep Caves | Spotted as-23447 2340 | -6/Deep Caves | Core integrity fell below 20% 2579 | -6/Deep Caves | Destroyed by as-23447 with Assembled Focal Cannon Last Messages --------------- 01621_ 1D-N5O(z) emerges from the Twisted Machinery. 01626_ MM-4YV(z) pulls a Mak. Shrapnel Gun out of the Twisted Machinery. 01633_ Imprinter: "Derelicts unite!" 01633_ Imprinter destroyed. 01636_ Acquired data core, extracted access codes \\HP34, \\L4R4, \\7K3L, \\EJXC. 01642_ 02-ZTT(z) pulls a Mak. Sword out of the Twisted Machinery. 01643_ 91-Y5Z(z) pulls a Mak. Sword out of the Twisted Machinery. QD-R77(z) bursts out of the Twisted Machinery. 01665_ IK-JWC(z) pulls a Mak. Shrapnel Gun out of the Twisted Machinery. LOCATION=DEEP CAVES GOAL=ESCAPE 01727_ Z-Facility disabled. 01753_ Identified RU-N14's Throwing Claymores. 01865_ System corrupted: Component data lost. 01929_ EXIT=FOUND 01983_ as-23447: "DSI9AT1D G8OHIBQ29FWG 26R186 QD12WHW8W33 TDK1 81FTS" 01984_ Imp. Signal Interpreter destroyed. 02008_ System corrupted: Energy discharge (-25). 02394_ System corrupted: Energy discharge (-34). Map ----- +----------------------------------------------------+ | ???????????????????????????# #??# | | ???????????????????????????# #?## | | ???????????????????????????# ### ## | | ???????????????????????????# #### ## | | ???????????????????????????# ### #?## | | ???????????????????????????# ## ##?## | | ???????????????????????????# ######??# | | ???????????????????????????# #???????# | | ???????????????????????????## ##???????## | | ?????????????????? ?????## #?????????# | | ???????????????? #????## ##???????## | | ?????????????= | ?????# #???##### | | ??????????? ! #?????# #???# # | | ????????? = ##????## #???# " | | ????????? = #?????# #???# # | | ???????? !g #?????# #???# ## | | ???????? M #?????# ##### ## ##? | | ??????? = #????## ### #?? | | ??????? ! #???## ####?# ##? | | ??????? ! #???# ###????# ## | | ??????" = = #???# ##??????# # | | ??????" = h! ##?## ##???????# # | | ??????" !! #?# #???????## # | | ?????# g= #?# #??????## # | | ?????" ! b #?# #?????## # | | ?????" M ! h @#### #?????# ## | | ?????" ! ##????## ## | | ??????"" ####### ## | | ?????? | | ??????? ### | | ??????? ;" ###### | | ??????? ### ##???# #### | | ???????? # # #?## ##??# ##??## # | | ???????? #### ## ## ##??####???# #????##### | | ????????? ##???# ?# ?###??????????## ##????????? | | ????????? ??????#??# ???????????????###??????????? | | ????????????????????#????????????????????????????? | | | | | | | | | | | | | | | | | | | | | | | | | | | +----------------------------------------------------+ Best States ------------- Heat Dissipation 34 Energy Generation 5 Energy Capacity 100 Matter Stores 300 Matter Capacity 300 Sight Range 16 Terrain Scan Density 10 Armor Coverage 80 Evasion (%) 62 Recoil Reduction 2 Item Schematics ----------------- Beamcaster | -6/Zion | Free Riot Gun | -6/Zion | Free Flamer | -6/Zion | Free Robot Schematics ------------------ None Fabricated ------------ Nothing Alien Tech Used ----------------- None Achievements -------------- None Challenges ------------ None Game ------ Seed RestorationDerelictReactor Manual? 0 Play Time 00:26:48 Cumulative 190.0 hours Start 2023.05.10 @ 21:01:44 End 2023.05.10 @ 21:37:32 Sessions 1 Manual Loads 0 Difficulty Rogue Special Mode None Game No. 542 Rogue 542 Adventurer 0 Explorer 0 Win Type - Total 9 Types 7/0/1/1/0/0/0/0/0 Lore% 77 Gallery% 76 Achievement% 68 Wizard Run 0 Options --------- ASCII 0 Keyboard 0 Movement Mouse Keybinds 0 Fullscreen 1 Font 16/SmallcapsGlow Map View 75x55 Tactical HUD 1 Map Filters NONE Filters NONE Steam 1 RUN: 7ba91060-e950-42bb-97a8-87c359f0cdc0